[Event "Titled Tuesday Blitz July 18 Early 2023"]
[White "lgabi"]
[Black "Frolyanov, Dmitry"]
[BlackFideId "4151976"]
[WhiteElo "2345"]
[BlackElo "2617"]
[Result "0-1"]
[Round "10"]
[TimeControl "180+2"]
[Date "2023.07.18"]
[WhiteClock "0:00:01"]
[BlackClock "0:00:32"]
[Board "49"]

1. e4 {[%clk 0:03:00]}  e5 {[%clk 0:02:59]} 2. Nf3 {[%clk 0:03:00]}  Nf6 {[%clk 0:02:59]} 3. Nxe5 {[%clk 0:03:00]}  d6 {[%clk 0:02:59]} 4. Nf3 {[%clk 0:02:58]}  Nxe4 {[%clk 0:02:58]} 5. d4 {[%clk 0:02:59]}  d5 {[%clk 0:02:58]} 6. Bd3 {[%clk 0:02:59]}  Bd6 {[%clk 0:02:58]} 7. O-O {[%clk 0:02:59]}  O-O {[%clk 0:02:58]} 8. c4 {[%clk 0:03:00]}  c6 {[%clk 0:02:59]} 9. Nc3 {[%clk 0:02:59]}  Nxc3 {[%clk 0:02:59]} 10. bxc3 {[%clk 0:03:00]}  dxc4 {[%clk 0:02:59]} 11. Bxc4 {[%clk 0:03:01]}  Bg4 {[%clk 0:02:59]} 12. Rb1 {[%clk 0:02:35]}  b5 {[%clk 0:02:58]} 13. Be2 {[%clk 0:02:32]}  Nd7 {[%clk 0:02:57]} 14. a4 {[%clk 0:02:20]}  a6 {[%clk 0:02:56]} 15. Qc2 {[%clk 0:01:50]}  Bh5 {[%clk 0:02:45]} 16. Ng5 {[%clk 0:01:42]}  Bg6 {[%clk 0:02:43]} 17. Bd3 {[%clk 0:01:41]}  Qc7 {[%clk 0:02:42]} 18. f4 {[%clk 0:01:36]}  Bxd3 {[%clk 0:02:38]} 19. Qxd3 {[%clk 0:01:37]}  Nf6 {[%clk 0:02:38]} 20. c4 {[%clk 0:01:33]}  bxc4 {[%clk 0:02:35]} 21. Qxc4 {[%clk 0:01:34]}  Rfe8 {[%clk 0:02:16]} 22. Bd2 {[%clk 0:01:23]}  h6 {[%clk 0:01:59]} 23. Nf3 {[%clk 0:01:22]}  c5 {[%clk 0:01:43]} 24. Rbc1 {[%clk 0:00:46]}  Ne4 {[%clk 0:01:41]} 25. Be3 {[%clk 0:00:41]}  Bxf4 {[%clk 0:01:36]} 26. Bxf4 {[%clk 0:00:41]}  Qxf4 {[%clk 0:01:37]} 27. g3 {[%clk 0:00:21]}  Qe3+ {[%clk 0:01:36]} 28. Kg2 {[%clk 0:00:21]}  cxd4 {[%clk 0:01:29]} 29. Rce1 {[%clk 0:00:16]}  Nd2 {[%clk 0:01:16]} 30. Rxe3 {[%clk 0:00:09]}  Nxc4 {[%clk 0:01:16]} 31. Rxe8+ {[%clk 0:00:10]}  Rxe8 {[%clk 0:01:16]} 32. Rc1 {[%clk 0:00:09]}  Ne3+ {[%clk 0:00:58]} 33. Kf2 {[%clk 0:00:09]}  d3 {[%clk 0:00:58]} 34. h3 {[%clk 0:00:08]}  Nd5 {[%clk 0:00:56]} 35. Rd1 {[%clk 0:00:08]}  Re2+ {[%clk 0:00:52]} 36. Kg1 {[%clk 0:00:09]}  Nb4 {[%clk 0:00:51]} 37. Kf1 {[%clk 0:00:06]}  Ra2 {[%clk 0:00:47]} 38. Ne5 {[%clk 0:00:04]}  d2 {[%clk 0:00:40]} 39. Ke2 {[%clk 0:00:03]}  Nd5 {[%clk 0:00:37]} 40. Rxd2 {[%clk 0:00:03]}  Nc3+ {[%clk 0:00:37]} 41. Kd3 {[%clk 0:00:03]}  Rxd2+ {[%clk 0:00:38]} 42. Kxd2 {[%clk 0:00:04]}  Nxa4 {[%clk 0:00:38]} 43. Kd3 {[%clk 0:00:03]}  Nc5+ {[%clk 0:00:37]} 44. Kd4 {[%clk 0:00:03]}  Ne6+ {[%clk 0:00:37]} 45. Ke4 {[%clk 0:00:04]}  a5 {[%clk 0:00:36]} 46. Nc4 {[%clk 0:00:03]}  a4 {[%clk 0:00:36]} 47. h4 {[%clk 0:00:02]}  h5 {[%clk 0:00:35]} 48. Kf5 {[%clk 0:00:02]}  g6+ {[%clk 0:00:34]} 49. Kf6 {[%clk 0:00:03]}  Nc5 {[%clk 0:00:32]} 50. Na3 {[%clk 0:00:01]}  Ne4+ {[%clk 0:00:32]} 0-1


[Site "https://www.chess.com"]

[Event "Titled Tuesday Blitz July 18 Early 2023"]
[White "Molina, Roberto Junio Brito"]
[Black "Jiang, Andrew"]
[WhiteFideId "2109450"]
[BlackFideId "30953510"]
[WhiteElo "2860"]
[BlackElo "2412"]
[Result "1-0"]
[Round "10"]
[TimeControl "180+2"]
[Date "2023.07.18"]
[WhiteClock "0:00:53"]
[BlackClock "0:01:34"]
[Board "50"]

1. e4 {[%clk 0:03:00]}  e5 {[%clk 0:02:57]} 2. f4 {[%clk 0:03:00]}  d5 {[%clk 0:02:56]} 3. exd5 {[%clk 0:03:00]}  exf4 {[%clk 0:02:55]} 4. Bb5+ {[%clk 0:02:57]}  Bd7 {[%clk 0:02:51]} 5. Bxd7+ {[%clk 0:02:55]}  Qxd7 {[%clk 0:02:50]} 6. c4 {[%clk 0:02:45]}  Nf6 {[%clk 0:02:48]} 7. Nf3 {[%clk 0:02:41]}  c6 {[%clk 0:02:40]} 8. Qe2+ {[%clk 0:02:37]}  Be7 {[%clk 0:02:39]} 9. Ne5 {[%clk 0:02:30]}  Qc7 {[%clk 0:02:38]} 10. d4 {[%clk 0:02:27]}  cxd5 {[%clk 0:02:38]} 11. Bxf4 {[%clk 0:02:27]}  Qb6 {[%clk 0:02:22]} 12. c5 {[%clk 0:02:11]}  Qb4+ {[%clk 0:02:20]} 13. Qd2 {[%clk 0:02:07]}  Qxd2+ {[%clk 0:02:16]} 14. Kxd2 {[%clk 0:02:03]}  Ne4+ {[%clk 0:02:13]} 15. Kc2 {[%clk 0:01:56]}  O-O {[%clk 0:02:10]} 16. Nc3 {[%clk 0:01:53]}  b6 {[%clk 0:02:01]} 17. Nxd5 {[%clk 0:01:49]}  Bd8 {[%clk 0:02:00]} 18. Rae1 {[%clk 0:01:44]}  f5 {[%clk 0:02:01]} 19. c6 {[%clk 0:01:39]}  Nxc6 {[%clk 0:02:00]} 20. Nxc6 {[%clk 0:01:35]}  Rc8 {[%clk 0:02:01]} 21. Bc7 {[%clk 0:01:20]}  Bxc7 {[%clk 0:01:55]} 22. Nde7+ {[%clk 0:01:07]}  Kf7 {[%clk 0:01:55]} 23. Nxc8 {[%clk 0:01:08]}  Rxc8 {[%clk 0:01:55]} 24. Nxa7 {[%clk 0:01:04]}  Ra8 {[%clk 0:01:53]} 25. Nb5 {[%clk 0:01:03]}  Bd8 {[%clk 0:01:45]} 26. a3 {[%clk 0:01:00]}  Ke6 {[%clk 0:01:44]} 27. Nc3 {[%clk 0:00:59]}  Rc8 {[%clk 0:01:43]} 28. Kd3 {[%clk 0:00:58]}  Bf6 {[%clk 0:01:40]} 29. Nxe4 {[%clk 0:00:57]}  fxe4+ {[%clk 0:01:41]} 30. Rxe4+ {[%clk 0:00:57]}  Kd5 {[%clk 0:01:40]} 31. Rf1 {[%clk 0:00:55]}  b5 {[%clk 0:01:34]} 32. Rf5+ {[%clk 0:00:53]} 1-0


[Site "https://www.chess.com"]

[Event "Titled Tuesday Blitz July 18 Early 2023"]
[White "Philippe, Guillaume"]
[Black "Goltsev, Dmitry"]
[WhiteFideId "36048763"]
[BlackFideId "24176710"]
[WhiteElo "2524"]
[BlackElo "2719"]
[Result "1-0"]
[Round "10"]
[TimeControl "180+2"]
[Date "2023.07.18"]
[WhiteClock "0:00:15"]
[BlackClock "0:00:03"]
[Board "53"]

1. e4 {[%clk 0:03:00]}  e6 {[%clk 0:02:58]} 2. d4 {[%clk 0:03:01]}  d5 {[%clk 0:02:59]} 3. Nc3 {[%clk 0:03:01]}  c5 {[%clk 0:02:59]} 4. exd5 {[%clk 0:02:47]}  exd5 {[%clk 0:03:00]} 5. dxc5 {[%clk 0:02:47]}  Nf6 {[%clk 0:03:00]} 6. Nf3 {[%clk 0:02:46]}  Bxc5 {[%clk 0:02:59]} 7. Bd3 {[%clk 0:02:43]}  O-O {[%clk 0:02:59]} 8. O-O {[%clk 0:02:42]}  Bg4 {[%clk 0:02:59]} 9. Bg5 {[%clk 0:02:40]}  Nc6 {[%clk 0:02:57]} 10. Bxf6 {[%clk 0:02:37]}  Qxf6 {[%clk 0:02:57]} 11. Nxd5 {[%clk 0:02:37]}  Qxb2 {[%clk 0:02:57]} 12. Bxh7+ {[%clk 0:02:33]}  Kh8 {[%clk 0:02:52]} 13. Bd3 {[%clk 0:02:32]}  Rad8 {[%clk 0:02:46]} 14. Rb1 {[%clk 0:02:26]}  Qxa2 {[%clk 0:02:46]} 15. Nc3 {[%clk 0:02:22]}  Qe6 {[%clk 0:02:41]} 16. Re1 {[%clk 0:02:11]}  Qh6 {[%clk 0:02:31]} 17. Ne4 {[%clk 0:02:08]}  Bb6 {[%clk 0:02:26]} 18. h3 {[%clk 0:01:59]}  Bh5 {[%clk 0:02:16]} 19. Ng3 {[%clk 0:01:45]}  Bg6 {[%clk 0:02:10]} 20. Qe2 {[%clk 0:01:39]}  Bxd3 {[%clk 0:02:03]} 21. cxd3 {[%clk 0:01:40]}  Qf4 {[%clk 0:02:02]} 22. Ne4 {[%clk 0:01:17]}  f6 {[%clk 0:01:50]} 23. Rb5 {[%clk 0:01:15]}  g6 {[%clk 0:01:21]} 24. g3 {[%clk 0:00:57]}  Qh6 {[%clk 0:01:06]} 25. Kg2 {[%clk 0:00:56]}  Kg7 {[%clk 0:00:57]} 26. Qb2 {[%clk 0:00:54]}  Rxd3 {[%clk 0:00:52]} 27. Neg5 {[%clk 0:00:49]}  Kh8 {[%clk 0:00:33]} 28. Re4 {[%clk 0:00:31]}  Kg8 {[%clk 0:00:05]} 29. Qa2+ {[%clk 0:00:27]}  Kg7 {[%clk 0:00:05]} 30. Ne6+ {[%clk 0:00:22]}  Kg8 {[%clk 0:00:05]} 31. Rh4 {[%clk 0:00:16]}  Qc1 {[%clk 0:00:03]} 32. Neg5+ {[%clk 0:00:15]}  Rd5 {[%clk 0:00:02]} 33. Qxd5+ {[%clk 0:00:14]}  Kg7 {[%clk 0:00:03]} 34. Rh7# {[%clk 0:00:15]} 1-0


[Site "https://www.chess.com"]

[Event "Titled Tuesday Blitz July 18 Early 2023"]
[White "Vyatkin, Dmitry"]
[Black "Preotu, Razvan"]
[WhiteFideId "4171900"]
[BlackFideId "2613280"]
[WhiteElo "2523"]
[BlackElo "2719"]
[Result "0-1"]
[Round "10"]
[TimeControl "180+2"]
[Date "2023.07.18"]
[WhiteClock "0:00:00"]
[BlackClock "0:00:02"]
[Board "54"]

1. d4 {[%clk 0:03:00]}  Nf6 {[%clk 0:02:57]} 2. c4 {[%clk 0:03:00]}  g6 {[%clk 0:02:57]} 3. g3 {[%clk 0:03:00]}  c6 {[%clk 0:02:54]} 4. Bg2 {[%clk 0:03:00]}  d5 {[%clk 0:02:55]} 5. Nf3 {[%clk 0:02:59]}  Bg7 {[%clk 0:02:55]} 6. O-O {[%clk 0:02:59]}  O-O {[%clk 0:02:56]} 7. b3 {[%clk 0:02:59]}  dxc4 {[%clk 0:02:56]} 8. bxc4 {[%clk 0:02:59]}  c5 {[%clk 0:02:57]} 9. Bb2 {[%clk 0:02:56]}  cxd4 {[%clk 0:02:57]} 10. Nxd4 {[%clk 0:02:56]}  Qb6 {[%clk 0:02:56]} 11. Qb3 {[%clk 0:02:55]}  Nfd7 {[%clk 0:02:51]} 12. e3 {[%clk 0:02:50]}  Nc5 {[%clk 0:02:49]} 13. Qxb6 {[%clk 0:02:43]}  axb6 {[%clk 0:02:50]} 14. Nd2 {[%clk 0:02:43]}  Rd8 {[%clk 0:02:31]} 15. N2b3 {[%clk 0:02:32]}  Nba6 {[%clk 0:02:00]} 16. Ba3 {[%clk 0:02:06]}  Bf5 {[%clk 0:01:29]} 17. Nxf5 {[%clk 0:01:41]}  gxf5 {[%clk 0:01:30]} 18. Rad1 {[%clk 0:01:41]}  e6 {[%clk 0:00:33]} 19. Rxd8+ {[%clk 0:01:19]}  Rxd8 {[%clk 0:00:33]} 20. Nxc5 {[%clk 0:01:18]}  Nxc5 {[%clk 0:00:34]} 21. Bxc5 {[%clk 0:01:18]}  bxc5 {[%clk 0:00:35]} 22. Bxb7 {[%clk 0:01:19]}  Rd3 {[%clk 0:00:09]} 23. a4 {[%clk 0:01:16]}  Ra3 {[%clk 0:00:09]} 24. Bc6 {[%clk 0:01:15]}  Be5 {[%clk 0:00:03]} 25. Rd1 {[%clk 0:01:11]}  Kg7 {[%clk 0:00:01]} 26. Rd7 {[%clk 0:00:45]}  Ra2 {[%clk 0:00:02]} 27. Ra7 {[%clk 0:00:40]}  Kf8 {[%clk 0:00:02]} 28. a5 {[%clk 0:00:37]}  Bc3 {[%clk 0:00:02]} 29. a6 {[%clk 0:00:37]}  Be1 {[%clk 0:00:02]} 30. Bb5 {[%clk 0:00:24]}  Bxf2+ {[%clk 0:00:02]} 31. Kf1 {[%clk 0:00:23]}  Bxe3 {[%clk 0:00:03]} 32. Rb7 {[%clk 0:00:23]}  f4 {[%clk 0:00:02]} 33. gxf4 {[%clk 0:00:21]}  Bxf4 {[%clk 0:00:03]} 34. a7 {[%clk 0:00:22]}  Kg7 {[%clk 0:00:04]} 35. Bc6 {[%clk 0:00:20]}  Bxh2 {[%clk 0:00:03]} 36. Rd7 {[%clk 0:00:19]}  Be5 {[%clk 0:00:03]} 37. a8=Q {[%clk 0:00:19]}  Rxa8 {[%clk 0:00:03]} 38. Bxa8 {[%clk 0:00:19]}  Bd4 {[%clk 0:00:03]} 39. Ke2 {[%clk 0:00:14]}  Kf8 {[%clk 0:00:03]} 40. Kf3 {[%clk 0:00:11]}  h6 {[%clk 0:00:03]} 41. Kg4 {[%clk 0:00:05]}  Kg7 {[%clk 0:00:03]} 42. Be4 {[%clk 0:00:03]}  Kf6 {[%clk 0:00:03]} 43. Bd3 {[%clk 0:00:02]}  Be5 {[%clk 0:00:02]} 44. Kh5 {[%clk 0:00:02]}  Bf4 {[%clk 0:00:02]} 45. Bh7 {[%clk 0:00:01]}  Kg7 {[%clk 0:00:01]} 46. Bg6 {[%clk 0:00:02]}  Kf6 {[%clk 0:00:01]} 47. Rxf7+ {[%clk 0:00:00]}  Ke5 {[%clk 0:00:02]} 0-1


[Site "https://www.chess.com"]

[Event "Titled Tuesday Blitz July 18 Early 2023"]
[White "ArtemDyachuk"]
[Black "Liyanage, Ranindu Dilshan"]
[BlackFideId "9915834"]
[WhiteElo "2521"]
[BlackElo "2689"]
[Result "0-1"]
[Round "10"]
[TimeControl "180+2"]
[Date "2023.07.18"]
[WhiteClock "0:00:00"]
[BlackClock "0:00:10"]
[Board "55"]

1. e4 {[%clk 0:03:00]}  c5 {[%clk 0:02:59]} 2. Nf3 {[%clk 0:03:00]}  Nc6 {[%clk 0:02:59]} 3. d4 {[%clk 0:02:58]}  cxd4 {[%clk 0:02:59]} 4. Nxd4 {[%clk 0:02:59]}  Nf6 {[%clk 0:03:00]} 5. Nc3 {[%clk 0:02:59]}  e5 {[%clk 0:03:00]} 6. Ndb5 {[%clk 0:02:58]}  d6 {[%clk 0:03:01]} 7. Nd5 {[%clk 0:02:58]}  Nxd5 {[%clk 0:03:01]} 8. exd5 {[%clk 0:02:58]}  Ne7 {[%clk 0:03:01]} 9. c4 {[%clk 0:02:58]}  Ng6 {[%clk 0:02:55]} 10. h4 {[%clk 0:02:54]}  h5 {[%clk 0:02:54]} 11. Qa4 {[%clk 0:02:53]}  Bd7 {[%clk 0:02:52]} 12. Qb4 {[%clk 0:02:53]}  Qb8 {[%clk 0:02:45]} 13. Be3 {[%clk 0:02:52]}  a6 {[%clk 0:02:28]} 14. Nc3 {[%clk 0:02:51]}  Be7 {[%clk 0:02:24]} 15. Ne4 {[%clk 0:02:39]}  f5 {[%clk 0:02:17]} 16. Ng5 {[%clk 0:02:38]}  f4 {[%clk 0:01:51]} 17. Bd3 {[%clk 0:02:23]}  Nxh4 {[%clk 0:01:51]} 18. Rxh4 {[%clk 0:02:24]}  Bxg5 {[%clk 0:01:51]} 19. Bg6+ {[%clk 0:02:22]}  Ke7 {[%clk 0:01:47]} 20. Bxf4 {[%clk 0:01:30]}  exf4 {[%clk 0:01:30]} 21. Rh1 {[%clk 0:01:27]}  Qc7 {[%clk 0:01:13]} 22. O-O-O {[%clk 0:01:23]}  Raf8 {[%clk 0:01:04]} 23. f3 {[%clk 0:01:05]}  Bf6 {[%clk 0:01:01]} 24. Kb1 {[%clk 0:01:03]}  Be5 {[%clk 0:00:53]} 25. Rhe1 {[%clk 0:00:57]}  Kf6 {[%clk 0:00:52]} 26. Bc2 {[%clk 0:00:56]}  b5 {[%clk 0:00:42]} 27. cxb5 {[%clk 0:00:49]}  axb5 {[%clk 0:00:21]} 28. g4 {[%clk 0:00:21]}  hxg4 {[%clk 0:00:06]} 29. Qe4 {[%clk 0:00:21]}  Rh6 {[%clk 0:00:05]} 30. fxg4 {[%clk 0:00:09]}  g5 {[%clk 0:00:05]} 31. Rh1 {[%clk 0:00:07]}  Rfh8 {[%clk 0:00:06]} 32. Rxh6+ {[%clk 0:00:06]}  Rxh6 {[%clk 0:00:07]} 33. Rh1 {[%clk 0:00:06]}  Rxh1+ {[%clk 0:00:07]} 34. Qxh1 {[%clk 0:00:07]}  Qc5 {[%clk 0:00:06]} 35. Qh6+ {[%clk 0:00:02]}  Ke7 {[%clk 0:00:06]} 36. Qxg5+ {[%clk 0:00:02]}  Bf6 {[%clk 0:00:07]} 37. Qxf4 {[%clk 0:00:01]}  Qg1+ {[%clk 0:00:07]} 38. Qc1 {[%clk 0:00:02]}  Qxc1+ {[%clk 0:00:07]} 39. Kxc1 {[%clk 0:00:02]}  Bxg4 {[%clk 0:00:08]} 40. Bd3 {[%clk 0:00:02]}  b4 {[%clk 0:00:08]} 41. a3 {[%clk 0:00:02]}  bxa3 {[%clk 0:00:08]} 42. bxa3 {[%clk 0:00:02]}  Bf3 {[%clk 0:00:08]} 43. Bc4 {[%clk 0:00:02]}  Kd7 {[%clk 0:00:08]} 44. Kd2 {[%clk 0:00:02]}  Kc7 {[%clk 0:00:09]} 45. Ke3 {[%clk 0:00:01]}  Bh1 {[%clk 0:00:10]} 46. Kf4 {[%clk 0:00:01]}  Kb6 {[%clk 0:00:10]} 47. Kf5 {[%clk 0:00:02]}  Bb2 {[%clk 0:00:10]} 48. Ke6 {[%clk 0:00:02]}  Bxa3 {[%clk 0:00:10]} 49. Bb3 {[%clk 0:00:02]}  Kc5 {[%clk 0:00:09]} 50. Ba2 {[%clk 0:00:03]}  Bc1 {[%clk 0:00:08]} 51. Bb3 {[%clk 0:00:02]}  Bf4 {[%clk 0:00:09]} 52. Ba2 {[%clk 0:00:02]}  Bg2 {[%clk 0:00:09]} 53. Bb3 {[%clk 0:00:02]}  Bh3+ {[%clk 0:00:10]} 54. Ke7 {[%clk 0:00:02]}  Kb4 {[%clk 0:00:10]} 55. Ba2 {[%clk 0:00:02]}  Bf5 {[%clk 0:00:10]} 56. Kf6 {[%clk 0:00:01]}  Bd3 {[%clk 0:00:10]} 57. Ke6 {[%clk 0:00:00]}  Ka3 {[%clk 0:00:10]} 0-1


[Site "https://www.chess.com"]

[Event "Titled Tuesday Blitz July 18 Early 2023"]
[White "Gulamali, Kazim"]
[Black "Galiot, Goran"]
[WhiteFideId "2024764"]
[BlackFideId "931560"]
[WhiteElo "2516"]
[BlackElo "2634"]
[Result "1-0"]
[Round "10"]
[TimeControl "180+2"]
[Date "2023.07.18"]
[WhiteClock "0:00:06"]
[BlackClock "0:00:00"]
[Board "58"]

1. e4 {[%clk 0:02:55]}  c5 {[%clk 0:02:59]} 2. Nf3 {[%clk 0:02:54]}  e6 {[%clk 0:03:00]} 3. d4 {[%clk 0:02:54]}  cxd4 {[%clk 0:03:00]} 4. Nxd4 {[%clk 0:02:55]}  Nf6 {[%clk 0:03:01]} 5. Bd3 {[%clk 0:02:54]}  Nc6 {[%clk 0:03:01]} 6. Nb3 {[%clk 0:02:49]}  b6 {[%clk 0:02:52]} 7. f4 {[%clk 0:02:33]}  d6 {[%clk 0:02:47]} 8. O-O {[%clk 0:02:30]}  Qc7 {[%clk 0:02:44]} 9. Nc3 {[%clk 0:02:27]}  a6 {[%clk 0:02:40]} 10. Be3 {[%clk 0:02:26]}  b5 {[%clk 0:02:35]} 11. Qf3 {[%clk 0:02:15]}  Bb7 {[%clk 0:02:34]} 12. a4 {[%clk 0:01:40]}  b4 {[%clk 0:02:32]} 13. Na2 {[%clk 0:01:40]}  Be7 {[%clk 0:02:19]} 14. c3 {[%clk 0:01:38]}  d5 {[%clk 0:02:11]} 15. e5 {[%clk 0:01:37]}  Ne4 {[%clk 0:02:11]} 16. Rac1 {[%clk 0:01:37]}  Qd7 {[%clk 0:01:44]} 17. Rfd1 {[%clk 0:01:20]}  f5 {[%clk 0:01:30]} 18. exf6 {[%clk 0:01:10]}  Nxf6 {[%clk 0:01:30]} 19. Nc5 {[%clk 0:01:06]}  Bxc5 {[%clk 0:01:25]} 20. Bxc5 {[%clk 0:01:07]}  b3 {[%clk 0:01:16]} 21. Nb4 {[%clk 0:00:57]}  Nxb4 {[%clk 0:01:12]} 22. cxb4 {[%clk 0:00:58]}  Qxa4 {[%clk 0:01:03]} 23. f5 {[%clk 0:00:31]}  e5 {[%clk 0:01:01]} 24. Qg3 {[%clk 0:00:31]}  Kf7 {[%clk 0:00:47]} 25. Qxe5 {[%clk 0:00:31]}  Rhe8 {[%clk 0:00:38]} 26. Qg3 {[%clk 0:00:16]}  Qd7 {[%clk 0:00:28]} 27. Bd4 {[%clk 0:00:13]}  Rac8 {[%clk 0:00:28]} 28. Rc5 {[%clk 0:00:09]}  Rxc5 {[%clk 0:00:28]} 29. bxc5 {[%clk 0:00:10]}  Bc6 {[%clk 0:00:22]} 30. Bxa6 {[%clk 0:00:09]}  Qxf5 {[%clk 0:00:21]} 31. Rf1 {[%clk 0:00:06]}  Qe4 {[%clk 0:00:17]} 32. Bxf6 {[%clk 0:00:06]}  gxf6 {[%clk 0:00:17]} 33. Qc7+ {[%clk 0:00:06]}  Re7 {[%clk 0:00:15]} 34. Qxc6 {[%clk 0:00:07]}  Re6 {[%clk 0:00:12]} 35. Qb7+ {[%clk 0:00:04]}  Kg6 {[%clk 0:00:12]} 36. Qxb3 {[%clk 0:00:05]}  Rxa6 {[%clk 0:00:10]} 37. Qg3+ {[%clk 0:00:04]}  Kh6 {[%clk 0:00:09]} 38. Qh3+ {[%clk 0:00:03]}  Kg6 {[%clk 0:00:09]} 39. Qg3+ {[%clk 0:00:04]}  Kf7 {[%clk 0:00:07]} 40. Qf2 {[%clk 0:00:05]}  Qe5 {[%clk 0:00:06]} 41. h3 {[%clk 0:00:05]}  Rc6 {[%clk 0:00:04]} 42. b4 {[%clk 0:00:06]}  d4 {[%clk 0:00:05]} 43. Rd1 {[%clk 0:00:06]}  d3 {[%clk 0:00:01]} 44. Rxd3 {[%clk 0:00:06]}  Re6 {[%clk 0:00:02]} 45. Rd7+ {[%clk 0:00:05]}  Kg6 {[%clk 0:00:00]} 46. Rd1 {[%clk 0:00:06]} 1-0


[Site "https://www.chess.com"]

[Event "Titled Tuesday Blitz July 18 Early 2023"]
[White "Ansh M Shah"]
[Black "Onufrienko, Vladislav"]
[WhiteFideId "25033379"]
[BlackFideId "13804332"]
[WhiteElo "2502"]
[BlackElo "2615"]
[Result "0-1"]
[Round "10"]
[TimeControl "180+2"]
[Date "2023.07.18"]
[WhiteClock "0:00:11"]
[BlackClock "0:00:07"]
[Board "59"]

1. Nf3 {[%clk 0:03:00]}  d5 {[%clk 0:02:59]} 2. g3 {[%clk 0:03:01]}  c6 {[%clk 0:02:59]} 3. Bg2 {[%clk 0:03:02]}  Bg4 {[%clk 0:02:59]} 4. O-O {[%clk 0:03:03]}  Nd7 {[%clk 0:02:59]} 5. b3 {[%clk 0:03:03]}  e5 {[%clk 0:02:59]} 6. Bb2 {[%clk 0:03:03]}  Bd6 {[%clk 0:02:58]} 7. d3 {[%clk 0:03:03]}  Ngf6 {[%clk 0:02:58]} 8. Nbd2 {[%clk 0:03:04]}  O-O {[%clk 0:02:56]} 9. e4 {[%clk 0:03:04]}  Re8 {[%clk 0:02:34]} 10. h3 {[%clk 0:03:02]}  Be6 {[%clk 0:02:19]} 11. Ng5 {[%clk 0:02:57]}  h6 {[%clk 0:02:19]} 12. Nxe6 {[%clk 0:02:55]}  fxe6 {[%clk 0:02:20]} 13. a3 {[%clk 0:02:47]}  Rf8 {[%clk 0:02:19]} 14. Qe2 {[%clk 0:02:48]}  Rf7 {[%clk 0:02:08]} 15. Rae1 {[%clk 0:02:48]}  Qb6 {[%clk 0:02:08]} 16. Kh2 {[%clk 0:02:47]}  Raf8 {[%clk 0:02:07]} 17. Nf3 {[%clk 0:02:43]}  Qc7 {[%clk 0:02:04]} 18. Nh4 {[%clk 0:02:42]}  Kh7 {[%clk 0:01:59]} 19. Kg1 {[%clk 0:02:33]}  a5 {[%clk 0:01:58]} 20. Bf3 {[%clk 0:02:21]}  g6 {[%clk 0:01:55]} 21. Bg2 {[%clk 0:02:19]}  Qb6 {[%clk 0:01:55]} 22. Kh1 {[%clk 0:02:19]}  Nh5 {[%clk 0:01:45]} 23. Nxg6 {[%clk 0:01:57]}  Kxg6 {[%clk 0:01:41]} 24. Qg4+ {[%clk 0:01:56]}  Kh7 {[%clk 0:01:35]} 25. Qxh5 {[%clk 0:01:56]}  Rxf2 {[%clk 0:01:23]} 26. Bc1 {[%clk 0:01:46]}  Rxf1+ {[%clk 0:01:04]} 27. Rxf1 {[%clk 0:01:47]}  Rxf1+ {[%clk 0:00:56]} 28. Bxf1 {[%clk 0:01:48]}  Qf2 {[%clk 0:00:38]} 29. Qxh6+ {[%clk 0:01:42]}  Kg8 {[%clk 0:00:39]} 30. Qxe6+ {[%clk 0:01:42]}  Kh8 {[%clk 0:00:37]} 31. Bg2 {[%clk 0:00:41]}  Bc5 {[%clk 0:00:37]} 32. Qh6+ {[%clk 0:00:28]}  Kg8 {[%clk 0:00:37]} 33. Qg6+ {[%clk 0:00:27]}  Kf8 {[%clk 0:00:30]} 34. Bh6+ {[%clk 0:00:23]}  Ke7 {[%clk 0:00:31]} 35. Bg5+ {[%clk 0:00:22]}  Kf8 {[%clk 0:00:31]} 36. Qf5+ {[%clk 0:00:14]}  Qxf5 {[%clk 0:00:31]} 37. exf5 {[%clk 0:00:15]}  Bxa3 {[%clk 0:00:31]} 38. g4 {[%clk 0:00:14]}  b5 {[%clk 0:00:29]} 39. Bd2 {[%clk 0:00:12]}  a4 {[%clk 0:00:28]} 40. bxa4 {[%clk 0:00:12]}  bxa4 {[%clk 0:00:29]} 41. c4 {[%clk 0:00:13]}  Nb6 {[%clk 0:00:17]} 42. Ba5 {[%clk 0:00:13]}  Bc5 {[%clk 0:00:17]} 43. cxd5 {[%clk 0:00:11]}  Nxd5 {[%clk 0:00:16]} 44. Bf3 {[%clk 0:00:08]}  a3 {[%clk 0:00:16]} 45. Bxd5 {[%clk 0:00:04]}  cxd5 {[%clk 0:00:15]} 46. Bc3 {[%clk 0:00:05]}  a2 {[%clk 0:00:10]} 47. Bxe5 {[%clk 0:00:04]}  d4 {[%clk 0:00:10]} 48. Kg2 {[%clk 0:00:04]}  a1=Q {[%clk 0:00:11]} 49. Kf3 {[%clk 0:00:05]}  Qf1+ {[%clk 0:00:11]} 50. Ke4 {[%clk 0:00:06]}  Qxh3 {[%clk 0:00:10]} 51. Kd5 {[%clk 0:00:07]}  Ba7 {[%clk 0:00:10]} 52. Ke6 {[%clk 0:00:08]}  Qxg4 {[%clk 0:00:09]} 53. Bd6+ {[%clk 0:00:07]}  Ke8 {[%clk 0:00:09]} 54. Be5 {[%clk 0:00:08]}  Qh5 {[%clk 0:00:07]} 55. f6 {[%clk 0:00:07]}  Qf7+ {[%clk 0:00:07]} 56. Kf5 {[%clk 0:00:07]}  Qd7+ {[%clk 0:00:08]} 57. Ke4 {[%clk 0:00:07]}  Kf7 {[%clk 0:00:08]} 58. Kf4 {[%clk 0:00:07]}  Qe6 {[%clk 0:00:07]} 59. Ke4 {[%clk 0:00:07]}  Kg6 {[%clk 0:00:07]} 60. Kf4 {[%clk 0:00:08]}  Qf5+ {[%clk 0:00:07]} 61. Kg3 {[%clk 0:00:07]}  Qxe5+ {[%clk 0:00:08]} 62. Kh4 {[%clk 0:00:08]}  Qxf6+ {[%clk 0:00:08]} 63. Kg4 {[%clk 0:00:09]}  Qf5+ {[%clk 0:00:08]} 64. Kh4 {[%clk 0:00:09]}  Qg5+ {[%clk 0:00:06]} 65. Kh3 {[%clk 0:00:09]}  Kf5 {[%clk 0:00:06]} 66. Kh2 {[%clk 0:00:10]}  Kf4 {[%clk 0:00:07]} 67. Kh1 {[%clk 0:00:11]}  Kf3 {[%clk 0:00:07]} 68. Kh2 {[%clk 0:00:11]}  Qg2# {[%clk 0:00:07]} 0-1


[Site "https://www.chess.com"]